fUST/lending_fUST_20250827
["ID","MTS","AMOUNT","RATE_DAILY","PERIOD"]
[381493549,1756231844536,-225.18697532,0.00041094,120]
[381493550,1756231844546,-250.0,0.00041094,120]
[381493551,1756231844555,-151.0,0.00041094,120]
[381493552,1756231844563,-233.51889341,0.00041094,120]
[381493553,1756231844573,-250.0,0.00041094,120]
[381493554,1756231844582,-242.15909246,0.00041094,120]
[381493555,1756231844591,-151.0,0.00041094,120]
[381493556,1756231844599,-250.0,0.00041094,120]
[381493557,1756231844608,-151.0,0.00041094,120]
[381493558,1756231844618,-251.11897888,0.00041094,120]
[381493559,1756231844627,-250.0,0.00041094,120]
[381493560,1756231844637,-260.4103811,0.00041094,120]
[381493561,1756231844646,-250.0,0.00041094,120]
[381493562,1756231844655,-151.0,0.00041094,120]
[381493563,1756231844664,-151.0,0.00041094,120]
[381493564,1756231844674,-151.0,0.00041094,120]
[381493565,1756231844683,-270.0455652,0.00041094,120]
[381493566,1756231844692,-151.0,0.00041094,120]
[381493567,1756231844701,-151.0,0.00041094,120]
[381493568,1756231844710,-151.0,0.00041094,120]
[381493569,1756231844719,-280.03725112,0.00041094,120]
[381493570,1756231844729,-151.0,0.00041094,120]
[381493571,1756231844739,-151.0,0.00041094,120]
[381493572,1756231844748,-151.0,0.00041094,120]
[381493573,1756231844758,-290.39862941,0.00041094,120]
[381493574,1756231844767,-165.13039111,0.00041094,120]
[381493575,1756231844777,-151.0,0.00041094,120]
[381493576,1756231844786,-151.0,0.00041094,120]
[381493577,1756231844795,-301.1433787,0.00041094,120]
[381493578,1756231844804,-151.0,0.00041094,120]
[381493579,1756231844813,-151.0,0.00041094,120]
[381493580,1756231844822,-151.0,0.00041094,120]
[381493581,1756231844832,-480.0,0.00041095,120]
[381493582,1756231844841,-480.0,0.00041095,120]
[381493583,1756231844850,-480.0,0.00041095,120]
[381493584,1756231844859,-480.0,0.00041095,120]
[381493585,1756231844869,-485.36,0.00041095,120]
[381493586,1756231844878,-480.0,0.00041095,120]
[381493587,1756231844887,-480.0,0.00041095,120]
[381493588,1756231844896,-480.61411207,0.00041095,120]
[381493589,1756231844906,-480.0,0.00041095,120]
[381493590,1756231844915,-480.0,0.00041095,120]
[381493591,1756231844924,-480.0,0.00041095,120]
[381493592,1756231844933,-480.81718544,0.00041095,120]
[381493593,1756231844942,-480.0,0.00041095,120]
[381493594,1756231844951,-480.0,0.00041095,120]
[381493595,1756231844960,-480.925193,0.00041095,120]
[381493596,1756231844969,-480.0,0.00041095,120]
[381493597,1756231844979,-480.0,0.00041095,120]
[381493598,1756231844988,-480.0,0.00041095,120]
[381493599,1756231844998,-480.0,0.00041095,120]
[381493600,1756231845008,-480.0,0.00041095,120]
[381493601,1756231845019,-480.0,0.00041095,120]
[381493602,1756231845031,-480.0,0.00041095,120]
[381493603,1756231845041,-480.0,0.00041095,2]
[381493604,1756231845050,-485.26,0.00041095,120]
[381493605,1756231845059,-480.0,0.00041095,120]
[381493606,1756231845069,-480.76672484,0.00041095,120]
[381493607,1756231845079,-480.0,0.00041095,120]
[381493608,1756231845088,-480.0,0.00041095,120]
[381493609,1756231845099,-480.0,0.00041095,120]
[381493610,1756231845108,-480.0,0.00041095,120]
[381493611,1756231845117,-480.0,0.00041095,120]
[381493612,1756231845126,-480.0,0.00041095,120]
[381493613,1756231845136,-480.0,0.00041095,120]
[381493614,1756231845145,-480.0,0.00041095,120]
[381493615,1756231845155,-410.59463232,0.00041095,120]
[381493616,1756231845164,-480.0,0.00041095,120]
[381493617,1756231845174,-480.0,0.00041095,120]
[381493618,1756231845183,-485.09,0.00041095,7]
[381493619,1756231845194,-2039.85,0.00041095,30]
[381493620,1756231845204,-480.0,0.00041095,120]
[381493621,1756231845215,-1398.34,0.00041095,120]
[381493622,1756231845226,-480.0,0.00041095,120]
[381493623,1756231845235,-480.0,0.00041095,120]
[381493624,1756231845244,-480.0,0.00041095,120]
[381493627,1756231845254,-480.0,0.00041095,120]
[381493629,1756231845263,-480.0,0.00041095,120]
[381493630,1756231845272,-504.32316477,0.00041095,120]
[381493631,1756231845282,-480.0,0.00041095,120]
[381493632,1756231845291,-480.0,0.00041095,120]
[381493633,1756231845300,-480.0,0.00041095,120]
[381493635,1756231845310,-480.0,0.00041095,120]
[381493637,1756231845319,-319.32505757,0.00041095,120]
[381493638,1756231845329,-480.0,0.00041095,120]
[381493639,1756231845339,-480.0,0.00041095,120]
[381493640,1756231845348,-480.0,0.00041095,120]
[381493641,1756231845358,-480.0,0.00041095,120]
[381493642,1756231845368,-480.0,0.00041095,120]
[381493643,1756231845377,-480.0,0.00041095,120]
[381493644,1756231845386,-480.77184585,0.00041095,120]
[381493645,1756231845396,-502.53,0.00041095,120]
[381493646,1756231845405,-480.0,0.00041095,120]
[381493647,1756231845414,-480.0,0.00041095,120]
[381493649,1756231845424,-480.80401824,0.00041095,120]
[381493650,1756231845433,-1178.43,0.00041095,120]
[381493651,1756231845442,-520.09,0.00041095,120]
[381493652,1756231845451,-480.0,0.00041095,120]
[381493653,1756231845460,-481.00747554,0.00041095,120]
[381493655,1756231845469,-480.0,0.00041095,120]
[381493657,1756231845478,-480.0,0.00041095,120]
[381493658,1756231845488,-481.04858646,0.00041095,120]
[381493659,1756231845497,-480.0,0.00041095,120]
[381493660,1756231845506,-5342.65,0.00041095,120]
[381493661,1756231845515,-491.0,0.00041095,120]
[381493663,1756231845524,-480.0,0.00041095,120]
[381493665,1756231845534,-480.0,0.00041095,120]
[381493666,1756231845543,-480.0,0.00041095,120]
[381493667,1756231845552,-488.66,0.00041095,120]
[381493668,1756231845561,-480.0,0.00041095,120]
[381493669,1756231845572,-480.0,0.00041095,120]
[381493670,1756231845582,-480.0,0.00041095,120]
[381493672,1756231845591,-480.0,0.00041095,120]
[381493673,1756231845601,-498.5,0.00041095,120]
[381493674,1756231845610,-480.0,0.00041095,120]
[381493675,1756231845619,-480.0,0.00041095,120]
[381493676,1756231845628,-480.0,0.00041095,120]
[381493677,1756231845638,-480.0,0.00041095,120]
[381493678,1756231845647,-151.819621,0.00041095,30]
[381493679,1756231845656,-480.0,0.00041095,120]
[381493680,1756231845666,-482.42613369,0.00041095,120]
[381493681,1756231845675,-457.45969536,0.00041095,120]
[381493682,1756231845685,-735.53,0.00041095,120]
[381493683,1756231845694,-480.0,0.00041095,120]
[381493684,1756231845704,-493.97,0.00041095,120]
[381493685,1756231845714,-541.94,0.00041095,120]
[381493686,1756231845724,-480.0,0.00041095,120]
[381493687,1756231845733,-151.32206234,0.00041095,120]
[381493688,1756231845742,-480.0,0.00041095,120]
[381493689,1756231845752,-480.0,0.00041095,120]
[381493690,1756231845761,-480.0,0.00041095,120]
[381493691,1756231845771,-480.0,0.00041095,120]
[381493692,1756231845780,-480.0,0.00041095,120]
[381493693,1756231845789,-494.41,0.00041095,120]
[381493694,1756231845799,-480.0,0.00041095,120]
[381493695,1756231845808,-480.0,0.00041095,120]
[381493696,1756231845818,-1403.27,0.00041095,120]
[381493697,1756231845827,-480.0,0.00041095,120]
[381493698,1756231845836,-480.0,0.00041095,120]
[381493699,1756231845846,-480.9938874,0.00041095,120]
[381493700,1756231845855,-480.0,0.00041095,120]
[381493701,1756231845864,-854.61,0.00041095,120]
[381493702,1756231845874,-480.0,0.00041095,120]
[381493703,1756231845883,-627.44,0.00041095,120]
[381493704,1756231845893,-281.001005,0.00041095,30]
[381493705,1756231845902,-480.0,0.00041095,120]
[381493706,1756231845912,-480.0,0.00041095,120]
[381493707,1756231845921,-480.0,0.00041095,120]
[381493708,1756231845930,-485.62,0.00041095,120]
[381493709,1756231845939,-480.0,0.00041095,120]
[381493710,1756231845949,-480.0,0.00041095,120]
[381493711,1756231845958,-151.0,0.00041095,30]
[381493712,1756231845967,-480.0,0.00041095,120]
[381493713,1756231845976,-430.54995257,0.00041095,120]
[381493714,1756231845986,-807.58,0.00041095,120]
[381493715,1756231845996,-480.0,0.00041095,120]
[381493716,1756231846005,-480.0,0.00041095,120]
[381493717,1756231846015,-603.89,0.00041095,120]
[381493718,1756231846028,-480.0,0.00041095,120]
[381493719,1756231846037,-480.0,0.00041095,120]
[381493720,1756231846047,-750.6,0.00041095,120]
[381493721,1756231846057,-480.0,0.00041095,120]
[381493722,1756231846067,-480.0,0.00041095,120]
[381493723,1756231846076,-1917.55,0.00041095,120]
[381493724,1756231846086,-480.0,0.00041095,120]
[381493725,1756231846095,-480.0,0.00041095,120]
[381493726,1756231846104,-502.45,0.00041095,120]
[381493727,1756231846113,-480.0,0.00041095,120]
[381493728,1756231846122,-480.0,0.00041095,120]
[381493729,1756231846131,-480.0,0.00041095,120]
[381493730,1756231846141,-542.18,0.00041095,120]
[381493731,1756231846150,-520.57,0.00041095,120]
[381493732,1756231846159,-530.0,0.00041095,14]
[381493733,1756231846168,-495.75,0.00041095,120]
[381493734,1756231846178,-373.25423959,0.00041095,120]
[381493735,1756231846189,-480.0,0.00041095,120]
[381493736,1756231846198,-480.0,0.00041095,120]
[381493737,1756231846207,-964.44,0.00041095,120]
[381493738,1756231846217,-480.0,0.00041095,120]
[381493739,1756231846226,-164.828353,0.00041095,30]
[381493740,1756231846236,-480.0,0.00041095,120]
[381493741,1756231846245,-502.64,0.00041095,120]
[381493742,1756231846255,-480.0,0.00041095,120]
[381493743,1756231846265,-151.0,0.00041095,30]
[381493744,1756231846275,-490.93,0.00041095,120]
[381493745,1756231846284,-151.0,0.00041095,30]
[381493746,1756231846294,-480.0,0.00041095,120]
[381493747,1756231846304,-501.34,0.00041095,120]
[381493748,1756231846314,-532.57,0.00041095,120]
[381493749,1756231846323,-480.0,0.00041095,120]
[381493750,1756231846333,-507.32,0.00041095,120]
[381493751,1756231846342,-480.0,0.00041095,120]
[381493752,1756231846351,-480.0,0.00041095,120]
[381493753,1756231846360,-480.0,0.00041095,120]
[381493754,1756231846370,-480.0,0.00041095,120]
[381493755,1756231846380,-1043.32,0.00041095,120]
[381493756,1756231846390,-480.0,0.00041095,120]
[381493757,1756231846401,-151.0,0.00041095,30]
[381493758,1756231846410,-480.0,0.00041095,120]
[381493759,1756231846419,-653.81,0.00041095,120]
[381493760,1756231846433,-480.0,0.00041095,120]
[381493761,1756231846443,-156.93071,0.00041095,30]
[381493762,1756231846452,-480.0,0.00041095,120]
[381493763,1756231846464,-480.0,0.00041095,120]
[381493764,1756231846473,-480.0,0.00041095,120]
[381493765,1756231846483,-684.84,0.00041095,120]
[381493766,1756231846492,-480.0,0.00041095,120]
[381493767,1756231846502,-480.0,0.00041095,120]
[381493768,1756231846512,-519.71925191,0.00041095,120]
[381493769,1756231846522,-480.0,0.00041095,120]
[381493770,1756231846532,-480.67145735,0.00041095,120]
[381493771,1756231846541,-480.0,0.00041095,120]
[381493772,1756231846552,-684.5,0.00041095,120]
[381493773,1756231846561,-488.22,0.00041095,120]
[381493774,1756231846570,-480.0,0.00041095,120]
[381493775,1756231846579,-480.0,0.00041095,120]
[381493776,1756231846589,-480.0,0.00041095,120]
[381493777,1756231846597,-546.75854201,0.00041095,120]
[381493778,1756231846607,-1010.06,0.00041095,120]
[381493779,1756231846617,-480.0,0.00041095,120]
[381493780,1756231846627,-339.33722863,0.00041095,120]
[381493781,1756231846636,-764.46,0.00041095,120]
[381493782,1756231846646,-484.45,0.00041095,120]
[381493783,1756231846655,-549.81,0.00041095,120]
[381493784,1756231846665,-541.01,0.00041095,120]
[381493785,1756231846675,-1923.34,0.00041095,120]
[381493786,1756231846684,-480.0,0.00041095,120]
[381493787,1756231846694,-932.9,0.00041095,120]
[381493788,1756231846703,-480.0,0.00041095,120]
[381493789,1756231846712,-254.34342906,0.00041095,120]
[381493790,1756231846723,-480.0,0.00041095,120]
[381493791,1756231846733,-481.05877966,0.00041095,120]
[381493792,1756231846742,-480.0,0.00041095,120]
[381493793,1756231846752,-480.0,0.00041095,120]
[381493794,1756231846761,-480.0,0.00041095,120]
[381493795,1756231846771,-1227.19,0.00041095,120]
[381493796,1756231846781,-480.0,0.00041095,120]
[381493797,1756231846791,-480.0,0.00041095,120]
[381493798,1756231846800,-493.80658246,0.00041095,120]
[381493799,1756231846810,-480.0,0.00041095,120]
[381493800,1756231846821,-480.0,0.00041095,120]
[381493801,1756231846831,-480.0,0.00041095,120]
[381493802,1756231846840,-480.0,0.00041095,120]
[381493803,1756231846849,-480.0,0.00041095,120]
[381493804,1756231846859,-486.23,0.00041095,120]
[381493805,1756231846868,-480.0,0.00041095,7]
[381493806,1756231846877,-480.0,0.00041095,120]
[381493807,1756231846887,-480.0,0.00041095,120]
[381493808,1756231846897,-480.0,0.00041095,120]
[381493809,1756231846906,-480.0,0.00041095,120]
[381493810,1756231846916,-480.0,0.00041095,120]
[381493811,1756231846925,-480.0,0.00041095,120]
[381493812,1756231846935,-480.0,0.00041095,120]
[381493813,1756231846944,-480.0,0.00041095,120]
[381493814,1756231846953,-1339.5,0.00041095,120]
[381493815,1756231846962,-1068.84,0.00041095,120]
[381493816,1756231846971,-480.0,0.00041095,120]
[381493817,1756231846981,-480.0,0.00041095,120]
[381493818,1756231846992,-480.0,0.00041095,120]
[381493819,1756231847001,-480.0,0.00041095,120]
[381493820,1756231847011,-480.0,0.00041095,120]
[381493821,1756231847024,-480.0,0.00041095,120]
[381493822,1756231847035,-520.52,0.00041095,120]
[381493823,1756231847047,-504.42,0.00041095,120]
[381493824,1756231847059,-480.0,0.00041095,120]
[381493825,1756231847069,-997.8,0.00041095,120]
[381493826,1756231847077,-480.88754783,0.00041095,120]
[381493827,1756231847087,-480.0,0.00041095,120]
[381493828,1756231847098,-248.95576416,0.00041095,120]
[381493829,1756231847110,-480.0,0.00041095,120]
[381493830,1756231847123,-214.86895575,0.00041095,120]
[381493831,1756231847215,-265.13104425,0.00041095,120]
[381493832,1756231847224,-480.0,0.00041095,120]
[381493833,1756231847233,-480.0,0.00041095,120]
[381493834,1756231847242,-302.09338892,0.00041095,120]
[381493835,1756231857736,658.3858949,0.000271,2]
[381493836,1756231857762,4341.6141051,0.000271,2]
[381493837,1756231903250,451.33206843,0.000199,2]
[381493838,1756231903275,267.90019264,0.000199,2]
[381493839,1756231903418,719.23226101,0.00026806,6]
[381493840,1756231903510,719.23226101,0.00023353,2]
[381493841,1756231903732,719.23226101,0.0002508,2]
[381493842,1756231904049,719.23226101,0.00021627,2]
[381493845,1756231974671,829.22468334,0.00026984,2]
[381493849,1756232047043,-242.76137208,0.00027134,2]
[381493850,1756232053278,-195.46431502,0.00027134,2]
[381493851,1756232070049,681.82666706,0.000199,2]
[381493852,1756232070248,681.82666699,0.0002508,2]
[381493853,1756232070960,681.82666699,0.00021627,2]
[381493854,1756232071058,681.82666699,0.00023353,2]
[381493855,1756232071167,681.82666699,0.00026806,6]
[381493856,1756232227751,-168.44192982,0.00027134,2]
[381493857,1756232237624,620.68712669,0.000199,2]
[381493858,1756232237697,620.68712648,0.00026806,6]
[381493859,1756232237732,620.68712648,0.00023353,2]
[381493860,1756232238028,620.68712648,0.00021627,2]
[381493861,1756232238089,134.07423883,0.0002508,2]
[381493862,1756232238116,486.61288765,0.0002508,2]
[381493863,1756232278882,-184.46493788,0.00027119,2]
[381493864,1756232281049,-373.76997371,0.00027119,2]
[381493865,1756232283158,-115.87497582,0.00027119,2]
[381493866,1756232404473,540.70199174,0.000199,2]
[381493867,1756232404683,540.7019915,0.00021627,2]
[381493868,1756232404785,540.7019915,0.00023353,2]
[381493869,1756232406630,540.7019915,0.00026806,6]
[381493870,1756232526890,-231.44574241,0.00027134,2]
[381493871,1756232530798,-21.21715233,0.00027134,2]
[381493872,1756232571458,487.38083802,0.000199,2]
[381493873,1756232571719,487.38083786,0.00021627,2]
[381493874,1756232571760,487.38083786,0.00023353,2]
[381493875,1756232571909,487.38083786,0.0002508,2]
[381493876,1756232572169,487.38083786,0.00026806,6]
[381493877,1756232742413,446.55142948,0.000199,2]
[381493878,1756232742729,446.55142943,0.00021627,2]
[381493879,1756232742847,446.55142943,0.00026806,6]
[381493880,1756232743038,446.55142943,0.00023353,2]
[381493881,1756232743404,446.55142943,0.0002508,2]
[381493882,1756232795437,178.214721,0.00025778,2]
[381493883,1756232795751,151.51124551,0.00026044,2]
[381493884,1756232824742,296.8111467,0.000271,2]
[381493885,1756232827403,-151.25984565,0.00027134,2]
[381493886,1756232830617,-101.40304908,0.00027134,2]
[381493887,1756232872569,6704.12853528,0.00018,2]
[381493890,1756232914993,763.08931204,0.0002,2]
[381493891,1756232915472,1906.25503947,0.00025,2]
[381493892,1756232915494,4413.69610155,0.00025,2]
[381493893,1756232917245,5586.31389845,0.00017,2]
[381493894,1756232917266,10000.01,0.00017,2]
[381493895,1756232917289,5227.04300585,0.00017,2]
[381493896,1756232918387,400.61674454,0.000199,2]
[381493897,1756232918454,400.61674434,0.00026806,6]
[381493898,1756232918495,400.61674434,0.00021627,2]
[381493899,1756232918592,400.61674434,0.00023353,2]
[381493900,1756232919113,400.61674434,0.0002508,2]
[381493901,1756232919142,1873.39868224,0.00024,60]
[381493902,1756232919376,159.25216296,0.00025,2]
[381493903,1756232919400,896.48459001,0.00025,2]
[381493904,1756232919422,2991.69105798,0.00025,2]
[381493905,1756232919733,7008.31894202,0.0002,2]
[381493906,1756232919755,3021.70920147,0.0002,2]
[381493907,1756232919851,6978.30079853,0.00025,2]
[381493908,1756232919873,8769.74652952,0.00025,2]
[381493909,1756232922481,199.0,0.00026,30]
[381493910,1756232922503,1230.26347048,0.00026,30]
[381493911,1756232922524,10000.01,0.00026,30]
[381493912,1756232922545,10000.01,0.00026,30]
[381493913,1756232922566,10000.01,0.00026,30]
[381493914,1756232922592,17575.01542428,0.00026,30]
[381493915,1756232925488,-457.55238351,0.0002739,2]
[381493916,1756232927756,10000.01,0.0002465,2]
[381493917,1756232927792,10000.01,0.0002465,2]
[381493918,1756232927816,10000.01,0.0002465,2]
[381493919,1756232927839,10000.01,0.0002465,2]
[381493920,1756232927862,10000.01,0.0002465,2]
[381493921,1756232927885,10000.01,0.0002465,2]
[381493922,1756232927907,9790.81289039,0.0002465,2]
[381493923,1756232928083,-43.28736161,0.0002739,2]
[381493924,1756232928384,155.71263839,0.0002,2]
[381493925,1756232928409,209.19710961,0.0002,2]
[381493926,1756232928434,2220.59720312,0.0002,2]
[381493927,1756232929135,161.0,0.00026,5]
[381493928,1756232929584,7210.28768832,0.00019063,2]
[381493929,1756232962093,-774.43710371,0.00028026,2]
[381493930,1756232962114,-1189.98748393,0.00028147,2]
[381493931,1756232964129,-383.6040709,0.00028431,2]
[381493958,1756233032072,-3313.58183463,0.00028949,2]
[381493960,1756233032082,-1200.0,0.00029011,2]
[381493962,1756233032091,-1751.14984564,0.00029012,2]
[381493964,1756233032101,-300.0,0.00029138,2]
[381493966,1756233032111,-300.0,0.00029138,2]
[381493968,1756233032121,-220.0,0.00029138,2]
[381493970,1756233032130,-300.0,0.00029138,2]
[381493972,1756233032139,-300.0,0.00029138,2]
[381493974,1756233032149,-1200.0,0.00029139,2]
[381493976,1756233032158,-151.47,0.00029271,15]
[381493977,1756233032167,-151.47,0.00029371,15]
[381493978,1756233032177,-160.0,0.00029389,2]
[381493979,1756233032187,-216.09257821,0.00029429,2]
[381493980,1756233032196,-160.0,0.00029429,2]
[381493981,1756233032205,-376.39720582,0.00029429,2]
[381493982,1756233032215,-151.47,0.00029471,15]
[381493983,1756233032224,-160.0,0.00029505,2]
[381493984,1756233032232,-160.0,0.00029563,2]
[381493985,1756233032242,-160.0,0.00029563,2]
[381493986,1756233032251,-151.49,0.00029571,15]
[381493987,1756233032260,-175.337191,0.00029589,120]
[381493988,1756233032269,-168.0,0.00029687,2]
[381493989,1756233032278,-2095.75719727,0.0002977,2]
[381493990,1756233032287,-168.0,0.00029773,7]
[381493991,1756233032296,-700.36098086,0.0002978,2]
[381493992,1756233032318,-822.4079066,0.0002978,2]
[381493999,1756233037948,-325.76237576,0.0002978,2]
[381494000,1756233037960,-1544.20402523,0.0002978,2]
[381494001,1756233037970,-9726.62312214,0.0002979,2]
[381494002,1756233037979,-168.0,0.00029861,2]
[381494003,1756233037988,-168.0,0.00029863,2]
[381494004,1756233037998,-292.75211489,0.00029869,2]
[381494005,1756233038008,-41830.971998,0.0002987,2]
[381494006,1756233038017,-246.41487594,0.0002987,2]
[381494007,1756233038026,-468.31,0.0002987,3]
[381494008,1756233038035,-234.15,0.0002987,3]
[381494009,1756233038044,-702.48,0.0002987,3]
[381494010,1756233038053,-801.4,0.0002987,3]
[381494011,1756233038062,-387.67,0.0002987,3]
[381494012,1756233038071,-193.84,0.0002987,3]
[381494013,1756233038080,-581.52,0.0002987,3]
[381494014,1756233038091,-422.69,0.0002987,10]
[381494015,1756233038100,-500.0,0.00029879,2]
[381494016,1756233038110,-500.0,0.00029879,2]
[381494017,1756233038119,-500.0,0.00029879,2]
[381494018,1756233038129,-500.0,0.00029879,2]
[381494019,1756233038139,-500.0,0.00029879,2]
[381494020,1756233038148,-500.0,0.00029879,2]
[381494021,1756233038158,-500.0,0.00029879,2]
[381494022,1756233038167,-574.31044954,0.00029879,2]
[381494023,1756233038178,-500.0,0.00029879,2]
[381494024,1756233038188,-500.0,0.00029879,2]
[381494025,1756233038199,-500.0,0.00029879,2]
[381494026,1756233038208,-500.0,0.00029879,2]
[381494027,1756233038218,-500.0,0.00029879,2]
[381494028,1756233038227,-500.0,0.00029879,2]
[381494029,1756233038237,-500.0,0.00029879,2]
[381494030,1756233038246,-500.0,0.00029879,2]
[381494031,1756233038256,-441.60682737,0.00029879,2]
[381494032,1756233038265,-901.92080233,0.00029879,2]
[381494033,1756233038275,-901.92080233,0.00029879,2]
[381494034,1756233038284,-901.92080233,0.00029879,2]
[381494035,1756233038293,-901.92080233,0.00029879,2]
[381494036,1756233038302,-901.92080233,0.00029879,2]
[381494037,1756233038313,-901.92080233,0.00029879,2]
[381494038,1756233038322,-901.92080233,0.00029879,2]
[381494039,1756233038333,-901.92080233,0.00029879,2]
[381494040,1756233038343,-901.92080233,0.00029879,2]
[381494041,1756233038352,-901.92080233,0.00029879,2]
[381494042,1756233038361,-901.92080233,0.00029879,2]
[381494043,1756233038371,-362.92583263,0.00029879,2]
[381494044,1756233038383,-26946.7314759,0.0002988,2]
[381494045,1756233038395,-1879.94999464,0.0002988,2]
[381494046,1756233038415,-138497.20652146,0.0002988,2]
[381494047,1756233038424,-985.65950376,0.0002988,2]
[381494048,1756233038433,-775.35,0.0002988,3]
[381494049,1756233038442,-64743.91988634,0.0002989,2]
[381494050,1756233038456,-30413.59709384,0.0002989,2]
[381494060,1756233040217,-86.44664398,0.0002987,10]
[381494067,1756233043190,-274842.48301982,0.0002989,2]
[381494068,1756233043199,-20915.485999,0.0002989,2]
[381494069,1756233043209,-160.0,0.000299,7]
[381494070,1756233043219,-1621.22,0.000299,7]
[381494071,1756233043228,-3051.47,0.000299,7]
[381494072,1756233043238,-8428.92,0.000299,2]
[381494073,1756233043247,-45135.88,0.000299,7]
[381494074,1756233043256,-232.53539143,0.000299,7]
[381494075,1756233043265,-160.0,0.000299,7]
[381494076,1756233043274,-217.18350301,0.000299,7]
[381494077,1756233043284,-2693.74311007,0.00029918,2]
[381494078,1756233043294,-168.0,0.00029977,7]
[381494080,1756233043303,-221.7136535,0.00030137,2]
[381494082,1756233043312,-168.0,0.00030193,2]
[381494084,1756233043322,-168.0,0.00030289,7]
[381494086,1756233043331,-168.0,0.00030312,2]
[381494088,1756233043341,-3392.73528844,0.00030315,2]
[381494090,1756233043350,-168.0,0.00030341,2]
[381494091,1756233043359,-386.0,0.00030364,2]
[381494092,1756233043368,-152.562615,0.00030407,2]
[381494093,1756233043382,-168.0,0.00030439,2]
[381494094,1756233043391,-168.0,0.00030627,2]
[381494095,1756233043400,-152.562615,0.00030661,2]
[381494096,1756233043409,-168.0,0.000307,2]
[381494097,1756233043420,-168.0,0.00030752,7]
[381494098,1756233043430,-160.0,0.00030767,2]
[381494099,1756233043439,-232.53539143,0.00030768,2]
[381494100,1756233043449,-217.18350301,0.00030768,2]
[381494101,1756233043458,-3392.73528844,0.0003085,2]
[381494102,1756233043467,-152.562615,0.00030915,2]
[381494103,1756233043476,-170.0,0.00031,120]
[381494104,1756233043485,-168.0,0.00031019,7]
[381494105,1756233043494,-264.85274484,0.000311,5]
[381494106,1756233043504,-168.0,0.00031161,7]
[381494107,1756233043513,-168.0,0.00031183,7]
[381494108,1756233043522,-160.0,0.000312,2]
[381494109,1756233043531,-936.62,0.0003124,3]
[381494110,1756233043541,-468.3,0.0003124,3]
[381494111,1756233043550,-1602.8,0.0003124,3]
[381494112,1756233043559,-775.34,0.0003124,3]
[381494113,1756233043568,-387.68,0.0003124,3]
[381494114,1756233043577,-1550.7,0.0003125,3]
[381494115,1756233043587,-3392.73528844,0.00031385,2]
[381494116,1756233043597,-420.0,0.00031432,2]
[381494117,1756233043606,-420.0,0.00031432,3]
[381494118,1756233043614,-284.0,0.00031432,3]
[381494119,1756233043624,-226.0,0.00031432,3]
[381494120,1756233043633,-217.18350301,0.00031432,3]
[381494121,1756233043642,-1488.0,0.00031433,3]
[381494122,1756233043652,-232.53539143,0.00031433,3]
[381494123,1756233043661,-160.0,0.00031433,3]
[381494124,1756233043670,-1680.0,0.00031434,3]
[381494125,1756233043679,-3094.65066644,0.00031452,2]
[381494126,1756233043688,-1621.22,0.000316,7]
[381494127,1756233043697,-3051.47,0.000316,7]
[381494128,1756233043706,-501.16703155,0.00031673,5]